bitfinex-derivatives/quotes_BNBF0:USTF0_20250603
["timestamp","ask_amount","ask_price","bid_price","bid_amount"]
[1748977745420,0.99727554,664.47,664.33,0.30105519]
[1748977745623,0.99727554,664.46,664.33,0.30105519]
[1748977745919,0.99727554,664.45,664.33,0.30105519]
[1748977746119,1.12367299,664.58,664.33,0.30105519]
[1748977747024,1.12367299,664.58,664.52,0.47837085]
[1748977747025,0.99772813,664.57,664.52,0.47837085]
[1748977747224,2.24804479,664.58,664.53,0.47837085]
[1748977747225,0.99772813,664.56,664.53,0.47837085]
[1748977747424,0.99772813,664.55,664.53,0.47837085]
[1748977747619,0.99772813,664.54,664.53,0.47837085]
[1748977748427,0.99772813,664.54,664.36,0.47837085]
[1748977748622,0.99772813,664.53,664.36,0.47837085]
[1748977748828,0.99772813,664.52,664.36,0.47837085]
[1748977749025,1.12367299,664.58,664.33,0.30105519]
[1748977749026,0.99772813,664.51,664.4,0.47837085]
[1748977749225,0.99772813,664.5,664.4,0.47837085]
[1748977749526,0.77398572,664.49,664.4,0.47837085]
[1748977749728,1.1243718,664.54,664.45,0.47837085]
[1748977750527,1.12367299,664.58,664.45,0.47837085]
[1748977750727,1.12420503,664.54,664.46,0.47837085]
[1748977753434,1.12420503,664.54,664.47,0.47837085]
[1748977754630,1.12367299,664.58,664.47,0.47837085]
[1748977754834,1.12385933,664.54,664.47,0.47837085]
[1748977756735,1.12385933,664.54,664.48,0.47837085]
[1748977758738,1.12392632,664.54,664.48,0.47837085]
[1748977759340,1.12392632,664.54,664.42,0.47837085]
[1748977759939,1.12392632,664.54,664.34,0.4028135]
[1748977759940,1.12392632,664.54,664.43,0.47837085]
[1748977761342,0.99448012,664.53,664.43,0.47837085]
[1748977761640,0.99448012,664.52,664.44,0.47837085]
[1748977761842,0.99448012,664.52,664.33,0.30105519]
[1748977761843,0.99448012,664.51,664.45,0.47837085]
[1748977762140,0.99448012,664.5,664.45,0.47837085]
[1748977762340,0.99448012,664.49,664.45,0.47837085]
[1748977762541,0.99448012,664.48,664.45,0.47837085]
[1748977762840,0.994623,664.47,664.45,0.47837085]
[1748977763043,0.994623,664.46,664.39,0.47837085]
[1748977763241,0.994623,664.45,664.39,0.47837085]
[1748977763540,0.994623,664.44,664.39,0.47837085]
[1748977763741,0.994623,664.43,664.4,0.47837085]
[1748977763942,0.994623,664.42,664.4,0.47837085]
[1748977764137,0.994623,664.41,664.4,0.47837085]
[1748977764937,0.994623,664.41,664.34,0.40291961]
[1748977764938,0.994623,664.41,664.39,0.47837085]
[1748977765138,0.994623,664.4,664.39,0.47837085]
[1748977765742,0.994623,664.4,664.38,0.47837085]
[1748977765942,0.994623,664.39,664.38,0.47837085]
[1748977766544,0.994623,664.39,664.38,0.47907414]
[1748977766740,0.99488784,664.39,664.34,0.40297737]
[1748977766940,0.99488784,664.38,664.35,0.30104613]
[1748977767142,0.99488784,664.37,664.35,0.30104613]
[1748977767342,0.99488784,664.36,664.35,0.30104613]
[1748977770742,0.99342459,664.36,664.35,0.30104613]
[1748977774750,0.99357733,664.36,664.35,0.30104613]
[1748977778650,1.12367299,664.58,664.35,0.30104613]
[1748977778952,1.12622658,664.54,664.38,0.47909849]
[1748977779155,0.99384494,664.53,664.38,0.47909849]
[1748977779348,0.99384494,664.52,664.37,0.47909849]
[1748977779554,0.99384494,664.51,664.38,0.47909849]
[1748977779753,0.99384494,664.5,664.39,0.47909849]
[1748977779951,0.99384494,664.49,664.4,0.47909849]
[1748977780147,0.99384494,664.48,664.4,0.47909849]
[1748977780453,0.99384494,664.47,664.4,0.47909849]
[1748977780648,0.99384494,664.46,664.4,0.47909849]
[1748977780848,0.99384494,664.45,664.4,0.47909849]
[1748977781053,0.99384494,664.44,664.4,0.47909849]
[1748977781251,0.99384494,664.43,664.4,0.47909849]
[1748977781449,0.99384494,664.42,664.4,0.47909849]
[1748977781653,0.99384494,664.41,664.38,0.47909849]
[1748977781855,0.99384494,664.4,664.39,0.47909849]
[1748977782155,0.99384494,664.4,664.35,0.30104613]
[1748977782354,0.99384494,664.39,664.35,0.30104613]
[1748977782556,0.99384494,664.38,664.35,0.30104613]
[1748977782750,0.99384494,664.37,664.35,0.30104613]
[1748977783053,1.12622658,664.45,664.35,0.30104613]
[1748977783054,0.99384494,664.36,664.35,0.30104613]
[1748977784254,0.99384494,664.36,664.35,0.78012634]
[1748977784957,0.99384494,664.36,664.35,0.30104613]
[1748977786658,0.99422781,664.36,664.35,0.30104613]
[1748977790460,1.12367299,664.58,664.35,0.30104613]
[1748977790661,1.12643962,664.51,664.39,0.47878905]
[1748977790865,0.9934542,664.5,664.39,0.47878905]
[1748977791059,0.9934542,664.49,664.39,0.47878905]
[1748977791259,0.9934542,664.48,664.4,0.47878905]
[1748977791464,0.9934542,664.47,664.4,0.47878905]
[1748977791661,0.9934542,664.46,664.41,0.47878905]
[1748977791861,0.9934542,664.45,664.41,0.47878905]
[1748977792163,0.9934542,664.44,664.35,0.30104613]
[1748977792367,0.9934542,664.43,664.35,0.30104613]
[1748977792668,0.9934542,664.42,664.35,0.30104613]
[1748977792867,0.9934542,664.41,664.35,0.30104613]
[1748977793067,1.12643962,664.51,664.35,0.30104613]
[1748977793068,0.9934542,664.4,664.35,0.30104613]
[1748977793368,0.9934542,664.39,664.35,0.30104613]
[1748977793567,0.9934542,664.38,664.35,0.30104613]
[1748977793760,0.9934542,664.37,664.35,0.30104613]
[1748977793966,0.9934542,664.36,664.35,0.30104613]
[1748977794468,1.12367299,664.58,664.35,0.30104613]
[1748977794662,1.12664527,664.51,664.35,0.30104613]
[1748977794867,0.992973,664.5,664.35,0.30104613]
[1748977795067,0.992973,664.49,664.35,0.30104613]
[1748977795269,0.992973,664.48,664.35,0.30104613]
[1748977795463,0.992973,664.47,664.35,0.30104613]
[1748977795664,0.992973,664.46,664.35,0.30104613]
[1748977795964,0.992973,664.45,664.35,0.30104613]
[1748977796169,0.992973,664.44,664.35,0.30104613]
[1748977796468,0.992973,664.43,664.35,0.30104613]
[1748977796668,0.992973,664.42,664.35,0.30104613]
[1748977796864,0.992973,664.41,664.35,0.30104613]
[1748977797068,0.992973,664.4,664.35,0.30104613]
[1748977797263,0.992973,664.39,664.35,0.30104613]
[1748977797467,0.76922644,664.38,664.36,0.40274647]
[1748977797667,1.12664527,664.49,664.36,0.40274647]
[1748977797868,1.12664527,664.49,664.47,0.47880138]
[1748977798464,1.12367299,664.58,664.47,0.47880138]
[1748977798672,1.12665774,664.49,664.47,0.47880138]
[1748977799070,1.12367299,664.58,664.47,0.47880138]
[1748977799273,1.12665125,664.49,664.47,0.47880138]
[1748977801374,1.12665712,664.49,664.47,0.47880138]
[1748977801573,1.12665712,664.49,664.46,0.47880138]
[1748977801971,1.12665712,664.49,664.47,0.47880138]
[1748977802567,1.12665712,664.49,664.46,0.47880138]
[1748977803175,1.12665712,664.47,664.46,0.47880138]
[1748977803371,2.6221521,664.58,664.43,0.47880138]
[1748977803372,1.49847911,664.56,664.43,0.47880138]
[1748977803575,1.12673166,664.45,664.43,0.47880138]
[1748977804171,1.12673166,664.45,664.35,0.30104613]
[1748977804172,1.12673166,664.46,664.35,0.30104613]
[1748977804678,1.12673166,664.45,664.35,0.30104613]
[1748977804875,1.12673166,664.46,664.35,0.30104613]
[1748977805078,1.1267395,664.46,664.35,0.30104613]
[1748977805677,1.1267395,664.46,664.36,0.47880138]
[1748977805877,1.1267395,664.46,664.35,0.30104613]
[1748977807377,1.1267395,664.46,664.35,0.77984751]
[1748977807774,1.1267395,664.46,664.35,0.30104613]
[1748977808977,2.6221521,664.58,664.35,0.30104613]
[1748977809177,1.12674209,664.46,664.35,0.30104613]
[1748977809477,0.9892091,664.45,664.35,0.30104613]
[1748977809676,0.9892091,664.44,664.35,0.30104613]
[1748977809871,0.9892091,664.43,664.35,0.30104613]
[1748977810074,0.9892091,664.42,664.35,0.30104613]
[1748977810271,0.9892091,664.41,664.35,0.30104613]
[1748977810473,0.9892091,664.4,664.35,0.30104613]
[1748977810675,0.9892091,664.39,664.35,0.30104613]
[1748977810876,0.9892091,664.38,664.35,0.30104613]
[1748977811077,0.9892091,664.37,664.35,0.30104613]
[1748977811377,0.9892091,664.36,664.35,0.30104613]
[1748977811578,0.9892091,664.36,664.35,0.77984751]
[1748977811771,0.9892091,664.36,664.35,0.30104613]
[1748977811976,0.9892091,664.36,664.35,0.77984751]
[1748977812979,1.49847911,664.57,664.35,0.77984751]
[1748977813179,1.12676062,664.45,664.37,0.47880138]
[1748977813372,0.98922177,664.44,664.37,0.47880138]
[1748977813573,0.98922177,664.43,664.37,0.47880138]
[1748977813773,0.98922177,664.42,664.37,0.47880138]
[1748977813980,0.98922177,664.41,664.37,0.47880138]
[1748977814179,0.98922177,664.4,664.38,0.40173208]
[1748977814475,0.98922177,664.39,664.35,0.30104613]
[1748977814779,1.12676062,664.45,664.35,0.30104613]
[1748977814780,0.98922177,664.38,664.36,0.4017281]
[1748977814972,0.98922177,664.37,664.36,0.4017281]
[1748977815375,0.98921273,664.37,664.36,0.4017281]
[1748977816981,1.49847911,664.55,664.36,0.4017281]
[1748977817280,1.12680085,664.45,664.43,0.4787919]
[1748977817473,2.11602198,664.44,664.42,0.4787919]
[1748977817676,0.98922113,664.43,664.42,0.4787919]
[1748977819482,0.98922113,664.43,664.37,0.4787919]
[1748977819781,0.98922113,664.42,664.37,0.4787919]
[1748977819981,0.98922113,664.41,664.36,0.4787919]
[1748977820280,0.98922113,664.4,664.37,0.4787919]
[1748977820480,0.98922113,664.39,664.37,0.4787919]
[1748977820688,0.98922113,664.38,664.35,0.30104613]
[1748977820876,0.98922113,664.37,664.35,0.30104613]
[1748977821074,0.98839534,664.36,664.35,0.30104613]
[1748977824877,0.98871403,664.36,664.35,0.30104613]
[1748977828983,0.98828612,664.36,664.35,0.30104613]
[1748977830682,0.764498,664.36,664.35,0.30104613]
[1748977832883,1.12601638,664.4,664.35,0.30104613]
[1748977835289,1.12601638,664.42,664.35,0.30104613]
[1748977836785,1.49847911,664.55,664.35,0.30104613]
[1748977837085,1.49847911,664.55,664.44,0.47853295]
[1748977837282,1.49847911,664.56,664.41,0.47853295]
[1748977837483,1.12583583,664.43,664.41,0.47853295]
[1748977840690,1.12583583,664.42,664.35,0.30104613]
[1748977842592,0.98719448,664.41,664.35,0.30104613]
[1748977842787,0.98719448,664.4,664.35,0.30104613]
[1748977842994,0.98719448,664.39,664.35,0.30104613]
[1748977843292,0.98719448,664.38,664.35,0.30104613]
[1748977843493,0.98719448,664.37,664.35,0.30104613]
[1748977843697,0.98719448,664.36,664.35,0.30104613]
[1748977844988,0.98718446,664.36,664.35,0.30104613]
[1748977848896,0.98706263,664.36,664.35,0.30104613]
[1748977853006,0.98738114,664.36,664.35,0.30104613]
[1748977857104,0.98814761,664.36,664.35,0.30104613]
[1748977858404,0.98814847,664.36,664.35,0.30104613]
[1748977859305,0.98984457,664.36,664.35,0.30104613]
[1748977860606,1.49847911,664.54,664.35,0.30104613]
[1748977860807,1.12546673,664.4,664.35,0.30104613]
[1748977861002,0.98932445,664.39,664.35,0.30104613]
[1748977861302,0.98932445,664.38,664.35,0.30104613]
[1748977861502,0.98932445,664.37,664.35,0.30104613]
[1748977861703,0.98932445,664.36,664.35,0.30104613]
[1748977863514,0.98850092,664.36,664.35,0.30104613]
[1748977867518,0.98875517,664.36,664.35,0.30104613]
[1748977870322,0.98875517,664.36,664.35,0.7799866]
[1748977870520,0.98875517,664.36,664.35,0.30104613]
[1748977871418,0.98938891,664.36,664.35,0.30104613]
[1748977873322,0.98938891,664.36,664.3,0.47894047]
[1748977873524,1.49847911,664.42,664.28,0.47894047]
[1748977873525,0.98938891,664.35,664.28,0.47894047]
[1748977873722,1.12505444,664.29,664.28,0.47894047]
[1748977874024,2.11444335,664.29,664.28,0.47894047]
[1748977874220,0.98938891,664.29,664.26,0.47894047]
[1748977874419,0.98938891,664.28,664.26,0.47894047]
[1748977874621,0.98938891,664.27,664.26,0.47894047]
[1748977875222,0.98894466,664.27,664.25,0.47894047]
[1748977875421,0.98894466,664.26,664.25,0.47894047]
[1748977875622,0.98894466,664.26,663.86,0.4787919]
[1748977875820,1.12503632,664.29,663.87,0.3012638]
[1748977875821,0.98894466,664.25,663.87,0.3012638]
[1748977876025,0.98894466,664.24,663.87,0.3012638]
[1748977876227,0.98894466,664.23,663.87,0.3012638]
[1748977876426,0.98894466,664.22,663.87,0.3012638]
[1748977876626,0.98894466,664.21,663.87,0.3012638]
[1748977876927,0.98894466,664.2,663.87,0.3012638]
[1748977877222,0.98894466,664.19,663.87,0.3012638]
[1748977877427,0.98894466,664.18,663.87,0.3012638]
[1748977877626,0.98894466,664.17,663.87,0.3012638]
[1748977877827,0.98894466,664.16,663.87,0.3012638]
[1748977878027,0.98894466,664.15,663.87,0.3012638]
[1748977878224,0.98894466,664.14,663.87,0.3012638]
[1748977878430,0.98894466,664.13,663.87,0.3012638]
[1748977878628,0.98894466,664.12,663.87,0.3012638]
[1748977878923,0.98894466,664.11,663.87,0.3012638]
[1748977879129,0.98862106,664.1,663.88,0.4787919]
[1748977879430,0.98862106,664.09,663.89,0.30125472]
[1748977879624,0.98862106,664.08,663.89,0.30125472]
[1748977879828,0.98862106,664.07,663.89,0.78004662]
[1748977880130,0.76477316,664.06,663.92,0.4787919]
[1748977880331,1.1248056,664.24,663.93,0.30123657]
[1748977880532,1.1248056,664.25,663.93,0.30123657]
[1748977881031,1.1248056,664.25,663.93,0.78002847]
[1748977881830,3.747906,664.97,663.93,0.30123657]
[1748977881831,1.1248056,664.23,663.93,0.30123657]
[1748977882731,1.1248056,664.23,664.22,0.4782546]
[1748977882930,1.1248056,664.23,663.93,0.30123657]
[1748977882931,1.49847911,664.35,663.93,0.30123657]
[1748977883125,1.12445982,664.24,664.23,0.47824336]
[1748977883329,1.12445982,664.24,663.93,0.30123657]
[1748977883528,1.12445982,664.24,664.23,0.47820706]
[1748977883931,1.12445982,664.25,664.23,0.47820706]
[1748977884130,1.12445982,664.25,664.21,0.47820706]
[1748977886130,1.12445982,664.26,664.22,0.47820706]
[1748977886530,1.12445982,664.27,664.22,0.47820706]
[1748977886934,1.12398494,664.27,664.23,0.47820706]
[1748977888336,1.12398494,664.27,664.24,0.47820706]
[1748977888537,1.12398494,664.27,664.23,0.47820706]
[1748977888938,1.12398494,664.27,664.25,0.47820706]
[1748977889138,1.12398494,664.27,663.93,0.30123657]
[1748977889139,1.12398494,664.26,663.97,0.4787919]
[1748977889332,1.12398494,664.26,663.98,0.78000579]
[1748977889536,1.12398494,664.26,663.99,0.30120935]
[1748977890539,1.12398494,664.3,663.99,0.30120935]
[1748977890839,1.12378466,664.3,664.28,0.47827084]
[1748977891240,1.12378466,664.3,664.29,0.47827084]
[1748977891539,1.12378466,664.31,664.29,0.47827084]
[1748977891936,1.12378466,664.31,663.99,0.30120935]
[1748977891937,1.12378466,664.3,663.99,0.30120935]
[1748977892139,0.98516891,664.29,663.99,0.30120935]
[1748977892334,0.98516891,664.28,663.99,0.30120935]
[1748977892535,0.98516891,664.27,663.99,0.30120935]
[1748977892740,0.98516891,664.26,663.99,0.30120935]
[1748977892940,0.98516891,664.25,663.99,0.30120935]
[1748977893142,0.98516891,664.24,663.99,0.30120935]
[1748977893340,0.98516891,664.23,663.99,0.30120935]
[1748977893642,0.98516891,664.22,663.99,0.30120935]
[1748977893838,0.98516891,664.21,664.01,0.4787919]
[1748977894141,1.12378466,664.3,664.02,0.30119574]
[1748977894142,0.98516891,664.2,664.02,0.30119574]
[1748977894342,0.98516891,664.19,664.02,0.30119574]
[1748977894539,0.98516891,664.18,664.02,0.30119574]
[1748977894738,0.98568238,664.17,664.02,0.30119574]
[1748977894939,0.98568238,664.16,664.02,0.30119574]
[1748977895140,0.98568238,664.15,664.02,0.30119574]
[1748977895336,0.98568238,664.14,664.02,0.30119574]
[1748977895541,0.98568238,664.13,664.02,0.77998764]
[1748977895841,0.98568238,664.12,664.02,0.77998764]
[1748977896040,0.98568238,664.11,664.02,0.77998764]
[1748977896242,0.98568238,664.1,664.02,0.77998764]
[1748977896440,0.98568238,664.09,664.02,0.77998764]
[1748977896644,1.12367973,664.3,664.02,0.30119574]
[1748977896841,0.98572064,664.29,664.02,0.30119574]
[1748977897144,0.98572064,664.28,664.02,0.30119574]
[1748977897344,0.98572064,664.27,664.02,0.30119574]
[1748977897546,0.98572064,664.26,664.03,0.4787919]
[1748977897744,0.98572064,664.25,664.04,0.30118667]
[1748977897945,0.98572064,664.24,664.04,0.30118667]
[1748977898146,0.98572064,664.23,664.04,0.30118667]
[1748977898345,0.98572064,664.22,664.04,0.30118667]
[1748977898547,0.98572064,664.21,664.04,0.30118667]
[1748977898749,0.98585003,664.2,664.04,0.30118667]
[1748977898950,0.98585003,664.19,664.04,0.30118667]
[1748977899145,0.98585003,664.18,664.04,0.30118667]
[1748977899346,0.98585003,664.17,664.04,0.30118667]
[1748977899543,0.98585003,664.16,664.04,0.30118667]
[1748977899747,0.98585003,664.15,664.04,0.30118667]
[1748977899944,0.98585003,664.14,664.04,0.30118667]
[1748977900149,0.98585003,664.13,664.04,0.30118667]
[1748977900350,0.98585003,664.12,664.04,0.30118667]
[1748977900550,0.98585003,664.11,664.04,0.30118667]
[1748977900848,0.98585003,664.1,664.04,0.30118667]
[1748977901049,0.98585003,664.09,664.04,0.30118667]
[1748977901246,1.49847911,664.43,664.04,0.30118667]
[1748977901247,1.12376869,664.43,664.04,0.30118667]
[1748977901454,0.98679749,664.42,664.04,0.30118667]
[1748977901652,0.98679749,664.41,664.04,0.30118667]
[1748977901846,0.98679749,664.4,664.04,0.30118667]
[1748977902046,0.98679749,664.39,664.04,0.30118667]
[1748977902245,0.98679749,664.38,664.04,0.30118667]
[1748977902445,0.98679749,664.37,664.04,0.30118667]
[1748977902649,0.98679749,664.36,664.04,0.30118667]
[1748977902846,0.98688739,664.35,664.04,0.30118667]
[1748977903153,0.98688739,664.34,664.04,0.30118667]
[1748977903452,0.98688739,664.33,664.04,0.30118667]
[1748977903652,0.98688739,664.32,664.04,0.30118667]
[1748977903852,0.98688739,664.31,664.04,0.30118667]
[1748977904053,0.98688739,664.3,664.04,0.30118667]
[1748977904253,0.98688739,664.29,664.04,0.30118667]
[1748977904449,0.98688739,664.28,664.04,0.30118667]
[1748977904656,0.98688739,664.27,664.04,0.30118667]
[1748977904850,0.98688739,664.26,664.04,0.30118667]
[1748977905052,0.98688739,664.25,664.04,0.30118667]
[1748977905252,0.98688739,664.24,664.04,0.30118667]
[1748977905452,0.98688739,664.23,664.04,0.30118667]
[1748977905653,0.98688739,664.22,664.04,0.30118667]
[1748977905854,0.98688739,664.21,664.04,0.30118667]
[1748977906054,0.98688739,664.2,664.04,0.30118667]
[1748977906356,0.98688739,664.19,664.04,0.30118667]
[1748977906555,0.98688739,664.18,664.04,0.30118667]
[1748977906756,1.49847911,664.61,664.04,0.30118667]
[1748977907054,1.12428845,664.43,664.04,0.30118667]
[1748977907256,0.98728233,664.42,664.04,0.30118667]
[1748977907456,0.98728233,664.41,664.04,0.30118667]
[1748977907651,0.98728233,664.4,664.04,0.30118667]
[1748977907849,0.98728233,664.39,664.04,0.30118667]
[1748977908050,0.98728233,664.38,664.04,0.30118667]
[1748977908256,0.98728233,664.37,664.04,0.30118667]
[1748977908457,0.98728233,664.36,664.04,0.30118667]
[1748977908658,0.98728233,664.35,664.04,0.30118667]
[1748977908857,0.98728233,664.34,664.04,0.30118667]
[1748977909060,0.98728233,664.33,664.04,0.30118667]
[1748977909259,0.98728233,664.32,664.04,0.30118667]
[1748977909460,0.98728233,664.31,664.04,0.30118667]
[1748977909759,0.98728233,664.3,664.04,0.30118667]
[1748977909952,1.12428845,664.42,664.04,0.30118667]
[1748977909953,0.98728233,664.29,664.04,0.30118667]
[1748977910157,0.98728233,664.28,664.04,0.30118667]
[1748977910358,0.98728233,664.27,664.04,0.30118667]
[1748977910561,0.98728233,664.26,664.04,0.30118667]
[1748977910758,0.98728233,664.25,664.04,0.30118667]
[1748977910958,1.12428845,664.42,664.04,0.30118667]
[1748977910959,0.98771527,664.24,664.04,0.30118667]
[1748977911159,3.747906,665.54,664.04,0.30118667]
[1748977911160,0.98771527,664.23,664.04,0.30118667]
[1748977911460,0.98771527,664.22,664.04,0.30118667]
[1748977911660,0.98771527,664.21,664.04,0.30118667]
[1748977911861,0.98771527,664.2,664.04,0.30118667]
[1748977912160,0.98771527,664.19,664.04,0.30118667]
[1748977912362,0.98771527,664.18,664.04,0.30118667]
[1748977912560,0.98771527,664.17,664.04,0.30118667]
[1748977912760,0.98771527,664.16,664.04,0.30118667]
[1748977912956,3.747906,665.18,664.04,0.30118667]
[1748977912957,0.98771527,664.15,664.04,0.30118667]
[1748977913161,1.12480186,664.51,664.04,0.30118667]
[1748977913355,3.747906,665.7,664.04,0.30118667]
[1748977913356,2.1129312,664.5,664.04,0.30118667]
[1748977913556,0.98812934,664.49,664.04,0.30118667]
[1748977913754,0.98812934,664.48,664.04,0.30118667]
[1748977913958,0.98812934,664.47,664.04,0.30118667]
[1748977914161,0.98812934,664.46,664.04,0.30118667]
[1748977914360,0.98812934,664.45,664.04,0.30118667]
[1748977914560,1.12480186,664.52,664.04,0.30118667]
[1748977914561,0.98812934,664.44,664.04,0.30118667]
[1748977914760,1.49847911,664.72,664.04,0.30118667]
[1748977914959,1.12521893,664.52,664.04,0.30118667]
[1748977915162,0.98805547,664.51,664.04,0.30118667]
[1748977915364,0.98805547,664.5,664.04,0.30118667]
[1748977915658,0.98805547,664.49,664.04,0.30118667]
[1748977915857,0.98805547,664.48,664.04,0.30118667]
[1748977916062,0.98805547,664.47,664.04,0.30118667]
[1748977916258,0.98805547,664.46,664.04,0.30118667]
[1748977916457,0.98805547,664.45,664.04,0.30118667]
[1748977916658,0.98805547,664.44,664.04,0.30118667]
[1748977916860,0.98805547,664.43,664.04,0.30118667]
[1748977917064,1.12521893,664.53,664.04,0.30118667]
[1748977917065,0.98805547,664.42,664.04,0.30118667]
[1748977917364,0.98805547,664.41,664.04,0.30118667]
[1748977917561,0.98805547,664.4,664.04,0.30118667]
[1748977917762,0.98805547,664.39,664.04,0.30118667]
[1748977917963,0.98805547,664.38,664.04,0.30118667]
[1748977918161,0.98805547,664.37,664.04,0.30118667]
[1748977918467,0.98805547,664.36,664.04,0.30118667]
[1748977918669,0.98805547,664.35,664.04,0.30118667]
[1748977918863,0.98850625,664.34,664.04,0.30118667]
[1748977919061,0.98850625,664.33,664.04,0.30118667]
[1748977919266,0.98850625,664.32,664.04,0.30118667]
[1748977919568,0.98752523,664.31,664.04,0.30118667]
[1748977919768,0.98752523,664.3,664.04,0.30118667]
[1748977919966,0.98752523,664.29,664.04,0.30118667]
[1748977920166,0.98752523,664.28,664.04,0.30118667]
[1748977920363,0.98752523,664.27,664.04,0.30118667]
[1748977920567,0.98752523,664.26,664.04,0.30118667]
[1748977920766,0.98752523,664.25,664.04,0.30118667]
[1748977920963,0.98752523,664.24,664.04,0.30118667]
[1748977921170,0.98752523,664.23,664.04,0.30118667]
[1748977921470,1.49847911,664.73,664.04,0.30118667]
[1748977921671,1.12501676,664.53,664.04,0.30118667]
[1748977921870,0.98726701,664.52,664.04,0.30118667]
[1748977922072,0.98726701,664.51,664.04,0.30118667]
[1748977922271,0.98726701,664.5,664.04,0.30118667]
[1748977922467,0.98726701,664.49,664.04,0.30118667]
[1748977922668,0.98726701,664.48,664.04,0.30118667]
[1748977922868,0.98726701,664.47,664.27,0.47884719]
[1748977923067,2.11228377,664.46,664.3,0.47884719]
[1748977923266,0.98726701,664.45,664.3,0.47884719]
[1748977923571,0.98726701,664.44,664.3,0.47884719]
[1748977923771,0.98726701,664.43,664.3,0.47884719]
[1748977923971,0.98726701,664.42,664.3,0.47884719]
[1748977924173,0.98726701,664.41,664.39,0.47884719]
[1748977924371,0.98726701,664.4,664.39,0.47884719]
[1748977924774,0.98726701,664.4,664.04,0.30118667]
[1748977924975,0.98726701,664.39,664.04,0.30118667]
[1748977925174,0.98726701,664.38,664.04,0.30118667]
[1748977925374,0.98726701,664.37,664.04,0.30118667]
[1748977925580,0.98727037,664.36,664.04,0.30118667]
[1748977925770,0.98727037,664.35,664.04,0.30118667]
[1748977925971,0.98727037,664.34,664.04,0.30118667]
[1748977926171,0.98727037,664.33,664.04,0.30118667]
[1748977926472,0.98727037,664.32,664.04,0.30118667]
[1748977926672,0.98727037,664.31,664.04,0.30118667]
[1748977926873,0.98727037,664.3,664.04,0.30118667]
[1748977927078,0.98727037,664.29,664.04,0.30118667]
[1748977927371,0.98727037,664.28,664.1,0.4787919]
[1748977927573,0.76348038,664.27,664.19,0.4787919]
[1748977927773,0.76348038,664.26,664.2,0.30111412]
[1748977927971,1.12483621,664.44,664.2,0.30111412]
[1748977928471,1.12483621,664.45,664.2,0.30111412]
[1748977928678,1.12483621,664.48,664.38,0.47815182]
[1748977928873,1.12483621,664.48,664.39,0.47815182]
[1748977929177,1.12483621,664.49,664.4,0.47815182]
[1748977929377,1.49847911,664.63,664.4,0.47815182]
[1748977929579,1.1245278,664.5,664.41,0.47815182]
[1748977929778,1.1245278,664.5,664.4,0.47815182]
[1748977930076,1.1245278,664.5,664.41,0.47815182]
[1748977930271,1.1245278,664.51,664.4,0.47815182]
[1748977930472,1.1245278,664.51,664.41,0.47815182]
[1748977930876,1.1245278,664.51,664.4,0.47815182]
[1748977931577,1.1245278,664.51,664.41,0.47815182]
[1748977932278,1.1245278,664.52,664.4,0.47815182]
[1748977932578,1.1245278,664.52,664.41,0.47815182]
[1748977933275,1.49847911,664.65,664.41,0.47815182]
[1748977933478,1.12404934,664.52,664.42,0.47815182]
[1748977933680,1.12404934,664.52,664.41,0.47815182]
[1748977934076,1.12404934,664.52,664.42,0.47815182]
[1748977934881,1.12404934,664.52,664.2,0.30111412]
[1748977934882,1.12404934,664.52,664.43,0.47815182]
[1748977935282,1.12404934,664.52,664.42,0.47815182]
[1748977935578,1.12404934,664.52,664.43,0.47815182]
[1748977937486,1.12404934,664.52,664.2,0.30111412]
[1748977937487,1.12376935,664.53,664.44,0.47815182]
[1748977937983,1.12376935,664.52,664.47,0.47815182]
[1748977938187,1.12376935,664.52,664.46,0.47815182]
[1748977938387,1.12376935,664.52,664.48,0.47815182]
[1748977938580,1.12376935,664.49,664.29,0.4787919]
[1748977939182,1.12376935,664.5,664.22,0.4787919]
[1748977939781,0.97969382,664.49,664.23,0.4787919]
[1748977939981,0.97969382,664.48,664.23,0.4787919]
[1748977940188,0.97969382,664.47,664.23,0.4787919]
[1748977940387,0.97969382,664.46,664.23,0.4787919]
[1748977940684,0.97969382,664.45,664.23,0.4787919]
[1748977940886,0.97969382,664.44,664.23,0.4787919]
[1748977941081,0.9796869,664.43,664.23,0.4787919]
[1748977941285,0.9796869,664.42,664.23,0.4787919]
[1748977941485,0.9796869,664.42,664.2,0.30111412]
[1748977941486,0.97968361,664.41,664.24,0.4787919]
[1748977941686,0.97968361,664.4,664.24,0.4787919]
[1748977941882,1.49847911,664.62,664.24,0.4787919]
[1748977941883,0.97968361,664.39,664.24,0.4787919]
[1748977942086,1.12367489,664.5,664.24,0.4787919]
[1748977942087,0.97968361,664.38,664.24,0.4787919]
[1748977942285,0.97968361,664.38,664.2,0.30111412]
[1748977942286,0.97968361,664.37,664.25,0.4787919]
[1748977942484,0.97968361,664.36,664.2,0.30111412]
[1748977942785,0.97968361,664.35,664.2,0.30111412]
[1748977942984,0.97968361,664.34,664.2,0.30111412]
[1748977943185,0.97968361,664.33,664.2,0.30111412]
[1748977943483,0.97968361,664.32,664.2,0.77990602]
[1748977943684,0.97968361,664.31,664.2,0.77990602]
[1748977943883,0.97968361,664.3,664.2,0.77990602]
[1748977944087,1.12367489,664.51,664.2,0.77990602]